bitfinex-derivatives/quotes_BNBF0:USTF0_20250608
["timestamp","ask_amount","ask_price","bid_price","bid_amount"]
[1749371251196,0.527,649.5,649.11,0.386]
[1749371251197,1.06862767,649.48,649.11,0.386]
[1749371251396,1.06862767,649.47,649.11,0.386]
[1749371251596,1.06861588,649.46,649.11,0.386]
[1749371251896,1.06861588,649.45,649.11,0.386]
[1749371252093,0.527,649.5,649.11,0.386]
[1749371252298,1.06861755,649.49,649.11,0.386]
[1749371252498,1.06861755,649.48,649.11,0.386]
[1749371252696,1.06861755,649.47,649.11,0.386]
[1749371252895,1.06861755,649.46,649.11,0.386]
[1749371253097,0.527,649.5,649.11,0.386]
[1749371253297,1.06860988,649.49,649.11,0.386]
[1749371253499,1.06860988,649.48,649.11,0.386]
[1749371253695,1.06860988,649.47,649.11,0.386]
[1749371253894,1.06860988,649.46,649.11,0.386]
[1749371254097,0.527,649.5,649.11,0.386]
[1749371254298,1.06860734,649.49,649.11,0.386]
[1749371254499,1.06860734,649.48,649.11,0.386]
[1749371254699,1.06860734,649.47,649.11,0.386]
[1749371254995,1.06860734,649.46,649.11,0.386]
[1749371255296,1.06869292,649.45,649.11,0.386]
[1749371255500,0.527,649.5,649.11,0.386]
[1749371255701,1.06868723,649.49,649.11,0.386]
[1749371255896,1.06868723,649.48,649.11,0.386]
[1749371256096,1.06868723,649.47,649.11,0.386]
[1749371256301,1.06868723,649.46,649.11,0.386]
[1749371256502,0.527,649.5,649.11,0.386]
[1749371256698,1.06869059,649.49,649.11,0.386]
[1749371256998,1.06869059,649.48,649.11,0.386]
[1749371257201,1.06869059,649.47,649.11,0.386]
[1749371257397,1.06869059,649.46,649.11,0.386]
[1749371257600,1.06869059,649.45,649.11,0.386]
[1749371257898,1.06869059,649.44,649.11,0.386]
[1749371258098,1.06869059,649.43,649.11,0.386]
[1749371258304,1.06869059,649.42,649.11,0.386]
[1749371258498,1.06869059,649.41,649.11,0.386]
[1749371258702,1.06869059,649.4,649.11,0.386]
[1749371258903,1.06869059,649.39,649.11,0.386]
[1749371259104,1.06869059,649.38,649.11,0.386]
[1749371259406,1.06869059,649.37,649.11,0.386]
[1749371259603,0.527,649.5,649.11,0.386]
[1749371259805,1.06825656,649.49,649.11,0.386]
[1749371260008,1.06825656,649.48,649.11,0.386]
[1749371260205,1.06825656,649.47,649.11,0.386]
[1749371260408,1.06825656,649.46,649.11,0.386]
[1749371260609,1.06825656,649.45,649.11,0.386]
[1749371260812,1.06825656,649.44,649.11,0.386]
[1749371261011,1.06825656,649.43,649.11,0.386]
[1749371261213,1.06825656,649.42,649.11,0.386]
[1749371261509,1.06825656,649.41,649.11,0.386]
[1749371261714,1.06825656,649.4,649.11,0.386]
[1749371261914,1.06825656,649.39,649.11,0.386]
[1749371262213,1.06825656,649.38,649.11,0.386]
[1749371262414,0.2680098,649.52,649.11,0.386]
[1749371262614,1.06793767,649.51,649.11,0.386]
[1749371262810,1.06793767,649.5,648.73,2.61426932]
[1749371263011,1.06793767,649.49,648.73,2.61426932]
[1749371263316,1.06793767,649.48,648.73,0.30829466]
[1749371263514,1.06793767,649.47,648.73,0.30829466]
[1749371263711,1.06793767,649.46,648.73,0.30829466]
[1749371264014,1.06793767,649.45,648.73,0.30829466]
[1749371264214,1.06793767,649.44,648.73,0.30829466]
[1749371264515,1.06793767,649.43,648.73,0.30829466]
[1749371264710,1.06793767,649.42,648.73,0.30829466]
[1749371264915,1.06793767,649.41,648.73,0.30829466]
[1749371265112,1.06793767,649.4,648.73,0.30829466]
[1749371265313,1.06793767,649.39,648.73,0.30829466]
[1749371265512,0.2680098,649.52,648.73,0.30829466]
[1749371265721,1.06769136,649.51,648.74,0.386]
[1749371265915,1.06769136,649.5,648.74,0.386]
[1749371266110,1.06769136,649.49,648.74,0.386]
[1749371266310,1.06769136,649.48,648.74,0.386]
[1749371266610,1.06769136,649.47,648.74,0.386]
[1749371266812,1.06769136,649.46,648.76,2.30597466]
[1749371267016,1.06769136,649.45,648.76,2.30597466]
[1749371267315,0.826,649.51,648.74,0.386]
[1749371267316,1.06769136,649.44,648.95,2.30597466]
[1749371267612,0.826,649.51,648.95,2.30597466]
[1749371267613,1.06769136,649.43,648.95,2.30597466]
[1749371267810,1.06769136,649.42,648.95,2.30597466]
[1749371268012,0.826,649.51,648.99,2.30597466]
[1749371268316,1.06756813,649.5,648.98,2.30597466]
[1749371268612,1.06756813,649.49,648.98,2.30597466]
[1749371268816,1.06756813,649.48,648.97,2.30597466]
[1749371269112,1.06756813,649.47,648.97,2.30597466]
[1749371269312,1.06756813,649.46,648.97,2.30597466]
[1749371269512,1.06756813,649.45,648.98,2.30597466]
[1749371269712,1.06756813,649.44,648.98,2.30597466]
[1749371269917,1.06756813,649.43,648.98,2.30597466]
[1749371270115,0.826,649.51,648.98,2.30597466]
[1749371270313,1.06756698,649.5,648.98,2.30597466]
[1749371270617,1.06756698,649.49,648.95,2.30597466]
[1749371270812,1.06756698,649.48,648.95,2.30597466]
[1749371271016,1.06756698,649.47,648.95,2.30597466]
[1749371271314,1.06756698,649.46,648.95,2.30597466]
[1749371271514,1.06756698,649.45,648.95,2.30597466]
[1749371271717,1.06756698,649.44,648.95,2.30597466]
[1749371271918,1.06756698,649.43,648.95,2.30597466]
[1749371272215,1.06756698,649.43,648.74,0.386]
[1749371272216,1.06756698,649.42,648.94,2.30597466]
[1749371272419,0.826,649.51,648.94,2.30597466]
[1749371272616,1.06731515,649.5,648.94,2.30597466]
[1749371272820,1.06731515,649.49,648.94,2.30597466]
[1749371273118,1.06731515,649.48,648.94,2.30597466]
[1749371273319,1.06731515,649.47,648.95,2.30597466]
[1749371273515,1.06731515,649.46,648.95,2.30597466]
[1749371273720,1.06731515,649.45,648.95,2.30597466]
[1749371273925,1.06731515,649.44,648.95,2.30597466]
[1749371274114,1.06731515,649.43,648.95,2.30597466]
[1749371274415,0.826,649.51,648.95,2.30597466]
[1749371274619,1.06724868,649.5,648.95,2.30597466]
[1749371274819,1.06724868,649.49,648.95,2.30597466]
[1749371275017,1.06724868,649.48,648.95,2.30597466]
[1749371275219,1.06724868,649.47,648.96,2.30597466]
[1749371275421,1.06724868,649.46,648.96,2.30597466]
[1749371275619,1.06724868,649.45,648.96,2.30597466]
[1749371275817,1.06724868,649.44,648.96,2.30597466]
[1749371276020,1.06724868,649.43,648.96,2.30597466]
[1749371276321,0.826,649.51,648.96,2.30597466]
[1749371276520,1.06718005,649.5,648.96,2.30597466]
[1749371276824,1.06718005,649.49,648.96,2.30597466]
[1749371277019,1.06718005,649.48,648.96,2.30597466]
[1749371277222,1.06718005,649.47,648.96,2.30597466]
[1749371277522,1.06718005,649.46,648.96,2.30597466]
[1749371277717,1.06718005,649.45,648.96,2.30597466]
[1749371277923,1.06718005,649.44,648.97,2.30597466]
[1749371278123,1.06718005,649.43,648.97,2.30597466]
[1749371278323,0.826,649.51,648.96,2.30597466]
[1749371278620,1.06718267,649.5,648.97,2.30597466]
[1749371278822,1.06718267,649.49,648.98,2.30597466]
[1749371279021,1.06718267,649.48,648.98,2.30597466]
[1749371279224,1.06718267,649.47,648.98,2.30597466]
[1749371279424,1.06718267,649.46,648.98,2.30597466]
[1749371279624,1.06718267,649.45,648.98,2.30597466]
[1749371279919,1.06718267,649.44,648.98,2.30597466]
[1749371280124,1.06718267,649.43,648.98,2.30597466]
[1749371280324,0.826,649.51,648.98,2.30597466]
[1749371280528,1.06718692,649.5,648.98,2.30597466]
[1749371280824,1.06718692,649.49,648.98,2.30597466]
[1749371281024,1.06718692,649.48,648.98,2.30597466]
[1749371281322,1.06718692,649.47,648.99,0.386]
[1749371281519,1.06718692,649.46,648.99,0.386]
[1749371281726,1.06718692,649.45,648.99,0.386]
[1749371281921,1.06718692,649.44,648.99,0.386]
[1749371282121,1.06718692,649.43,648.99,0.386]
[1749371282324,0.826,649.51,648.99,0.386]
[1749371282524,1.06721643,649.5,648.99,0.386]
[1749371282724,1.06721643,649.49,648.99,0.386]
[1749371282922,1.06721643,649.48,648.99,0.386]
[1749371283125,1.06721643,649.47,648.99,0.386]
[1749371283425,1.06721643,649.46,648.99,0.386]
[1749371283724,1.06721643,649.45,648.99,0.386]
[1749371283921,1.06721643,649.44,648.99,0.386]
[1749371284225,1.06721643,649.43,648.99,0.386]
[1749371284424,0.826,649.51,648.99,0.386]
[1749371284622,1.06727687,649.5,648.99,0.386]
[1749371284825,1.06727687,649.49,648.99,0.386]
[1749371285025,1.06727687,649.48,648.99,0.386]
[1749371285226,1.06727687,649.47,648.99,0.386]
[1749371285526,1.06727687,649.46,648.99,0.386]
[1749371285823,1.06727687,649.45,648.99,0.386]
[1749371286022,1.06727687,649.44,648.99,0.386]
[1749371286222,1.06727687,649.43,648.99,0.386]
[1749371286423,0.826,649.51,648.99,0.386]
[1749371286722,1.067304,649.5,648.99,0.386]
[1749371286923,1.067304,649.49,648.99,0.386]
[1749371287128,1.067304,649.48,648.99,0.386]
[1749371287427,1.067304,649.47,648.99,0.386]
[1749371287723,1.067304,649.46,648.99,0.386]
[1749371287921,1.067304,649.45,648.99,0.386]
[1749371288126,1.067304,649.44,648.99,0.386]
[1749371288422,1.067304,649.43,648.99,0.386]
[1749371288725,1.06734613,649.42,648.99,0.386]
[1749371289027,0.2680098,649.52,648.99,0.386]
[1749371289326,1.06742717,649.51,648.99,0.386]
[1749371289526,1.06742717,649.5,648.99,0.386]
[1749371289724,1.06742717,649.49,648.99,0.386]
[1749371289928,1.06742717,649.48,648.99,0.386]
[1749371290125,1.06742717,649.47,648.99,0.386]
[1749371290428,1.06742717,649.46,648.99,0.386]
[1749371290628,1.06742717,649.45,648.99,0.386]
[1749371290924,1.06742717,649.44,648.99,0.386]
[1749371291124,1.06742717,649.43,648.99,0.386]
[1749371291424,1.06742717,649.42,648.99,0.386]
[1749371291725,0.644,649.47,648.99,0.386]
[1749371291931,1.06749518,649.46,648.99,0.386]
[1749371292128,1.06749518,649.45,648.99,0.386]
[1749371292329,1.06749518,649.44,648.99,0.386]
[1749371292529,1.06749518,649.43,648.99,0.386]
[1749371292727,0.644,649.47,648.99,0.386]
[1749371292930,1.06752266,649.46,648.99,0.386]
[1749371293227,1.06752266,649.45,648.99,0.386]
[1749371293426,1.06752266,649.44,648.99,0.386]
[1749371293625,1.06752266,649.43,648.99,0.386]
[1749371293826,0.644,649.47,648.99,0.386]
[1749371294127,1.06754903,649.46,648.99,0.386]
[1749371294328,1.06754903,649.45,648.99,0.386]
[1749371294532,1.06754903,649.44,648.99,0.386]
[1749371294730,1.06754903,649.43,648.99,0.386]
[1749371295032,0.644,649.47,648.99,0.386]
[1749371302438,0.644,649.47,649.0,2.30597466]
[1749371303137,0.644,649.47,649.01,2.30597466]
[1749371303838,0.644,649.47,649.02,2.30597466]
[1749371304134,0.644,649.47,649.01,2.30597466]
[1749371304338,0.644,649.47,649.02,2.30597466]
[1749371304538,0.644,649.47,649.01,2.30597466]
[1749371304838,0.644,649.47,649.09,2.30597466]
[1749371305038,0.644,649.47,649.1,2.30597466]
[1749371305641,0.644,649.47,649.11,2.30597466]
[1749371306140,0.644,649.47,649.12,2.30597466]
[1749371306440,0.644,649.47,649.14,2.30597466]
[1749371309443,0.644,649.47,649.13,2.30597466]
[1749371310044,0.644,649.47,649.1,2.30597466]
[1749371310245,0.644,649.47,649.14,0.386]
[1749371317349,0.2680098,649.52,649.14,0.386]
[1749371321351,0.633,649.51,648.91,2.30597466]
[1749371322052,0.633,649.51,648.9,2.30597466]
[1749371324352,0.633,649.51,648.91,0.386]
[1749371325254,0.633,649.51,649.0,2.30597466]
[1749371325857,0.633,649.51,648.91,0.386]
[1749371335765,0.633,649.51,648.92,2.30597466]
[1749371336067,0.633,649.51,648.94,2.30597466]
[1749371339771,0.633,649.51,649.01,2.30597466]
[1749371340264,0.633,649.51,648.95,2.30597466]
[1749371340667,0.633,649.51,648.94,2.30597466]
[1749371340866,0.633,649.51,648.95,2.30597466]
[1749371341068,0.633,649.51,648.94,2.30597466]
[1749371341368,0.633,649.51,648.73,0.30829466]
[1749371341369,0.633,649.51,648.96,0.386]
[1749371344672,0.633,649.51,648.99,2.30597466]
[1749371346373,0.633,649.51,649.0,2.30597466]
[1749371346574,0.633,649.51,648.99,2.30597466]
[1749371346976,0.633,649.51,649.0,2.30597466]
[1749371347675,0.633,649.51,648.96,2.69197466]
[1749371348079,0.633,649.51,648.96,0.386]
[1749371349475,0.2680098,649.52,648.96,0.386]
[1749371350279,0.2680098,649.52,649.0,2.30597466]
[1749371350680,0.2680098,649.52,649.01,2.30597466]
[1749371351475,0.2680098,649.52,649.0,2.30597466]
[1749371352076,0.2680098,649.52,649.01,2.30597466]
[1749371352981,0.783,649.51,649.01,2.30597466]
[1749371353376,0.783,649.51,648.96,0.386]
[1749371353377,0.783,649.51,649.02,2.30597466]
[1749371355484,0.783,649.51,649.03,2.30597466]
[1749371357585,0.783,649.51,649.08,2.30597466]
[1749371357886,0.783,649.51,649.1,2.30597466]
[1749371358390,0.783,649.51,649.04,2.30597466]
[1749371358589,0.26799122,649.43,649.04,2.30597466]
[1749371360987,0.26799122,649.43,649.05,2.30597466]
[1749371361485,0.26799122,649.43,648.96,0.386]
[1749371361486,0.26799122,649.43,649.07,2.30597466]
[1749371361788,0.26799122,649.43,649.06,2.30597466]
[1749371362285,0.26799122,649.43,649.05,2.30597466]
[1749371363489,0.26799122,649.43,649.06,2.30597466]
[1749371364491,0.26799122,649.43,649.07,2.30597466]
[1749371365991,0.26799122,649.43,648.96,0.386]
[1749371370293,0.26799122,649.43,648.84,2.30597466]
[1749371371688,0.26799122,649.43,648.83,2.30597466]
[1749371372696,0.26799122,649.43,648.84,0.386]
[1749371375997,0.26799122,649.43,648.95,2.30597466]
[1749371376495,0.26799122,649.43,648.96,2.30597466]
[1749371377397,0.26799122,649.43,648.93,2.30597466]
[1749371378695,0.26799122,649.43,648.92,2.30597466]
[1749371380600,0.26799122,649.43,648.93,2.30597466]
[1749371381496,0.26799122,649.43,648.96,2.30597466]
[1749371383600,0.26799122,649.43,649.05,2.30597466]
[1749371383900,0.26799122,649.43,649.06,2.30597466]
[1749371387201,0.26799122,649.43,649.12,2.30597466]
[1749371387898,0.26799122,649.43,649.13,2.30597466]
[1749371388799,0.26799122,649.43,649.12,2.30597466]
[1749371389301,0.26799122,649.43,649.13,2.30597466]
[1749371390101,0.26799122,649.43,649.12,2.30597466]
[1749371392904,0.26799122,649.43,649.11,2.30597466]
[1749371393505,0.26799122,649.43,649.12,2.30597466]
[1749371396901,0.26799122,649.43,649.13,2.30597466]
[1749371397102,0.26799122,649.43,649.15,2.30597466]
[1749371398303,0.26799122,649.43,649.16,2.30597466]
[1749371399404,0.26799122,649.43,649.15,2.30597466]
[1749371399809,0.26799122,649.43,649.16,2.30597466]
[1749371400307,0.26799122,649.43,648.84,0.386]
[1749371400308,0.26799122,649.43,649.2,2.30597466]
[1749371400708,0.26799122,649.43,648.84,0.386]
[1749371400709,0.26799122,649.43,649.14,2.30597466]
[1749371401907,0.26799122,649.43,649.15,2.30597466]
[1749371403009,0.26799122,649.43,649.16,2.30597466]
[1749371404413,0.26799122,649.43,649.13,2.30597466]
[1749371404913,0.26799122,649.43,649.12,2.30597466]
[1749371405711,0.648,649.42,649.12,2.30597466]
[1749371406108,0.648,649.42,649.13,0.386]
[1749371406710,0.648,649.42,649.13,2.69197466]
[1749371408315,0.648,649.42,649.13,0.386]
[1749371414817,0.648,649.42,649.13,2.69197466]
[1749371415017,0.648,649.42,649.13,0.386]
[1749371422421,0.648,649.42,649.16,2.30597466]
[1749371424928,0.648,649.42,649.17,2.30597466]
[1749371426229,0.648,649.42,649.18,2.30597466]
[1749371426927,0.648,649.42,649.23,2.30597466]
[1749371432528,0.26799122,649.43,649.18,2.30597466]
[1749371433129,0.26799122,649.43,649.19,0.386]
[1749371436735,0.689,649.42,649.19,0.386]
[1749371469361,0.689,649.42,649.21,2.30597466]
[1749371469965,0.689,649.42,649.19,0.386]
[1749371491583,0.689,649.42,649.2,2.3031313]
[1749371491987,0.689,649.42,649.22,2.3031313]
[1749371492583,0.689,649.42,649.21,2.3031313]
[1749371492783,0.2679809,649.51,649.22,2.3031313]
[1749371493487,0.2679809,649.51,649.21,2.3031313]
[1749371494788,0.2679809,649.51,649.22,2.3031313]
[1749371495189,0.2679809,649.51,649.21,2.3031313]
[1749371495688,0.736,649.5,649.22,2.3031313]
[1749371496085,0.736,649.5,649.21,2.3031313]
[1749371496287,0.736,649.5,649.23,0.386]
[1749371500894,0.736,649.5,649.23,2.6891313]
[1749371501092,0.736,649.5,649.23,0.386]
[1749371507197,0.736,649.5,648.92,2.3031313]
[1749371507396,0.736,649.5,648.93,2.3031313]
[1749371510198,0.736,649.5,648.94,0.386]
[1749371510502,0.736,649.5,648.94,2.6891313]
[1749371512003,0.736,649.5,648.95,2.3031313]
[1749371512604,0.736,649.5,649.04,2.3031313]
[1749371513200,0.736,649.5,649.03,2.3031313]
[1749371513503,0.736,649.5,649.04,2.3031313]
[1749371514201,0.736,649.5,649.03,2.3031313]
[1749371515802,0.736,649.5,649.19,2.3031313]
[1749371517207,0.736,649.5,649.18,2.3031313]
[1749371519903,0.736,649.5,649.24,2.3031313]
[1749371520304,0.736,649.5,649.27,2.3031313]
[1749371522611,0.736,649.5,649.2,2.3031313]
[1749371524108,0.736,649.5,649.24,2.3031313]
[1749371525210,0.736,649.5,649.23,2.3031313]
[1749371527116,0.736,649.5,649.25,2.3031313]
[1749371527813,0.736,649.5,649.15,2.3031313]
[1749371528519,0.736,649.5,649.14,2.3031313]
[1749371529419,0.736,649.5,648.94,0.386]
[1749371529420,0.736,649.5,649.09,2.3031313]
[1749371529619,0.736,649.5,649.08,2.3031313]
[1749371529920,0.736,649.5,649.09,2.3031313]
[1749371531724,0.736,649.5,649.08,2.3031313]
[1749371532617,0.736,649.5,649.07,2.3031313]
[1749371537528,0.736,649.5,649.1,2.3031313]
[1749371538722,0.2679809,649.51,649.1,2.3031313]
[1749371539425,0.2679809,649.51,649.17,2.3031313]
[1749371541031,0.2679809,649.51,649.18,0.386]
[1749371542726,0.589,649.5,649.18,2.6891313]
[1749371543127,0.589,649.5,649.19,2.3031313]
[1749371544026,0.589,649.5,649.18,2.6891313]
[1749371552636,0.589,649.5,649.18,0.386]
[1749371559042,0.589,649.5,649.16,2.3031313]
[1749371562753,0.589,649.5,649.2,2.3031313]
[1749371566654,0.589,649.5,649.17,0.386]
[1749371570658,0.2679809,649.51,649.17,0.386]
[1749371574463,0.555,649.5,649.17,0.386]
[1749371589681,0.555,649.5,649.03,2.3031313]
[1749371589878,0.555,649.5,649.2,2.3031313]
[1749371591184,0.555,649.5,649.18,2.3031313]
[1749371592085,0.555,649.5,649.15,2.3031313]
[1749371592284,0.555,649.5,649.19,0.386]
[1749371599492,0.26795614,649.67,649.19,0.386]
[1749371603495,0.766,649.66,649.19,0.386]
[1749371609398,0.766,649.66,648.73,0.30829466]
[1749371611698,0.766,649.66,648.76,3.83855216]
[1749371611898,0.766,649.66,648.77,0.30827566]
[1749371612102,0.766,649.66,648.77,4.14682782]
[1749371612301,0.766,649.66,648.78,0.3082709]
[1749371612800,0.766,649.66,648.79,0.387]
[1749371613001,0.766,649.66,648.8,0.3082614]
[1749371631412,0.26795614,649.67,648.8,0.3082614]
[1749371633910,0.702,649.66,648.8,0.3082614]
[1749371643825,0.702,649.66,648.81,0.387]
[1749371644121,0.702,649.66,648.82,0.3082519]
[1749371645225,0.702,649.66,648.83,3.83855216]
[1749371646822,0.702,649.66,648.84,3.83855216]
[1749371648128,0.702,649.66,648.85,3.83855216]
[1749371648422,0.702,649.66,648.87,3.83855216]
[1749371649524,0.702,649.66,648.84,3.83855216]
[1749371650228,0.702,649.66,648.82,0.3082519]
[1749371653030,0.702,649.66,648.85,3.83855216]
[1749371654328,0.702,649.66,648.82,0.3082519]
[1749371657935,0.702,649.66,648.88,3.83855216]
[1749371658835,0.702,649.66,648.89,3.83855216]
[1749371659331,0.702,649.66,648.99,3.83855216]
[1749371659732,0.702,649.66,648.98,3.83855216]
[1749371661238,0.702,649.66,648.93,3.83855216]
[1749371661635,0.702,649.66,648.95,3.83855216]
[1749371662541,0.702,649.66,648.94,3.83855216]
[1749371663042,0.702,649.66,648.84,3.83855216]
[1749371663242,0.702,649.66,648.85,0.30823765]
[1749371663938,0.702,649.66,648.89,3.83855216]
[1749371665142,0.702,649.66,648.92,3.83855216]
[1749371666644,0.702,649.66,648.93,3.83855216]
[1749371667944,0.702,649.66,648.96,3.83855216]
[1749371668948,0.702,649.66,648.97,3.83855216]
[1749371669243,0.702,649.66,648.99,3.83855216]
[1749371669748,0.702,649.66,648.98,3.83855216]
[1749371671150,0.702,649.66,649.05,3.83855216]
[1749371671546,0.702,649.66,649.07,3.83855216]
[1749371671952,0.21415698,649.66,649.07,3.83855216]
[1749371672350,0.21415698,649.66,648.85,0.30823765]
[1749371673548,0.21415698,649.66,648.86,0.387]
[1749371673750,0.21415698,649.66,648.87,0.30822815]
[1749371682757,0.21415698,649.66,648.92,3.83855216]
[1749371683257,0.21415698,649.66,648.9,3.83855216]
[1749371683459,0.21415698,649.66,648.91,0.30820915]
[1749371685160,0.21415698,649.66,648.91,4.14676131]
[1749371685354,0.21415698,649.66,648.91,0.30820915]
[1749371692163,0.26793757,649.74,648.91,0.30820915]
[1749371695263,0.26793757,649.74,648.96,3.83855216]
[1749371695666,0.26793757,649.74,648.98,3.83855216]
[1749371696764,0.26793757,649.74,648.97,3.83855216]
[1749371698069,0.26793757,649.74,648.91,0.30820915]
[1749371698070,0.853,649.73,648.96,3.83855216]
[1749371698871,0.853,649.73,648.97,0.387]
[1749371702972,0.853,649.73,649.05,3.83855216]
[1749371703373,0.853,649.73,649.14,3.83855216]
[1749371704372,0.853,649.73,649.13,3.83855216]
[1749371706672,0.853,649.73,649.15,3.83855216]
[1749371707577,0.853,649.73,649.17,3.83855216]
[1749371707774,0.853,649.73,648.97,0.387]
[1749371707775,0.853,649.73,649.2,3.83855216]
[1749371708380,0.853,649.73,649.23,3.83855216]
[1749371710681,0.853,649.73,649.24,3.83855216]
[1749371712882,0.853,649.73,649.08,3.83855216]
[1749371713180,0.853,649.73,649.06,3.83855216]
[1749371714178,0.853,649.73,648.91,0.30820915]
[1749371714179,0.853,649.73,649.07,3.83855216]
[1749371714382,0.853,649.73,649.07,4.22455216]
[1749371714782,0.853,649.73,649.08,3.83855216]
[1749371716481,0.853,649.73,649.09,3.83855216]
[1749371717280,0.853,649.73,649.1,3.83855216]
[1749371717883,0.853,649.73,649.11,3.83855216]
[1749371721988,0.853,649.73,649.12,3.83855216]
[1749371722884,0.853,649.73,649.15,3.83855216]
[1749371723686,0.853,649.73,649.14,3.83855216]
[1749371724684,0.853,649.73,649.15,3.83855216]
[1749371730190,0.26793757,649.74,649.15,3.83855216]
[1749371731891,0.26793757,649.74,649.16,0.386]
[1749371732689,0.805,649.73,649.16,0.386]
[1749371742703,0.805,649.73,649.22,3.83855216]
[1749371746804,0.805,649.73,649.23,0.386]
[1749371767818,0.26793757,649.74,649.23,0.386]
[1749371771523,0.67,649.73,649.23,0.386]
[1749371771925,0.67,649.73,648.91,0.30820915]
[1749371775828,0.67,649.73,648.92,0.387]
[1749371782837,0.67,649.73,648.94,3.83855216]
[1749371783338,0.26793551,649.67,648.94,3.83855216]
[1749371784137,0.26793551,649.67,649.01,3.83855216]
[1749371785142,0.26793551,649.67,649.02,3.83855216]
[1749371785442,0.26793551,649.67,649.03,3.83855216]
[1749371785842,0.26793551,649.67,649.04,3.83855216]
[1749371786837,0.26793551,649.67,649.06,3.83855216]
[1749371787337,0.26793551,649.67,648.92,0.387]
[1749371787338,0.26793551,649.67,649.08,3.83855216]
[1749371791146,0.26793551,649.67,649.07,3.83855216]
[1749371791546,0.26793551,649.67,648.92,0.387]
[1749371791547,0.26793551,649.67,649.05,3.83855216]
[1749371791944,0.26793551,649.67,649.06,3.83855216]
[1749371792844,0.26793551,649.67,649.14,3.83855216]
[1749371794248,0.26793551,649.67,649.13,3.83855216]
[1749371795644,0.26793551,649.67,649.12,3.83855216]
[1749371796648,0.26793551,649.67,649.0,3.83855216]
[1749371797449,0.26793551,649.67,648.99,3.83855216]
[1749371797949,0.26793551,649.67,648.98,3.83855216]
[1749371799549,0.26793551,649.67,648.92,0.387]
[1749371799550,0.26793551,649.67,648.96,3.83855216]
[1749371799749,0.26793551,649.67,648.97,3.83855216]
[1749371801053,0.26793551,649.67,649.01,3.83855216]
[1749371802157,0.26793551,649.67,649.0,3.83855216]
[1749371802453,0.26793551,649.67,649.01,3.83855216]
[1749371802858,0.26793551,649.67,648.92,0.387]
[1749371804954,0.26793551,649.67,648.91,4.14676131]
[1749371805555,0.26793551,649.67,648.92,3.83855216]
[1749371806558,0.26793551,649.67,649.01,3.83855216]
[1749371807056,0.26793551,649.67,649.03,3.83855216]
[1749371807459,0.26793551,649.67,649.02,3.83855216]
[1749371807855,0.26793551,649.67,649.04,3.83855216]
[1749371808561,0.26793551,649.67,649.05,0.387]
[1749371821972,0.731,649.66,649.05,0.387]
[1749371825472,0.731,649.66,649.03,3.83855216]
[1749371825473,0.731,649.66,648.96,3.83855216]
[1749371826372,0.731,649.66,648.91,0.30820915]
[1749371828675,0.731,649.66,648.92,0.387]
[1749371835578,0.731,649.66,648.92,4.22555216]
[1749371836382,0.731,649.66,648.97,3.83855216]
[1749371836978,0.731,649.66,648.98,3.83855216]
[1749371837179,0.26793551,649.67,648.98,3.83855216]
[1749371840081,0.731,649.66,648.99,3.83855216]
[1749371841085,0.731,649.66,649.08,3.83855216]
[1749371841588,0.731,649.66,649.07,3.83855216]
[1749371841988,0.731,649.66,649.06,3.83855216]
[1749371842389,0.731,649.66,649.15,3.83855216]
[1749371842787,0.731,649.66,648.92,0.387]
[1749371845889,0.731,649.66,648.91,0.30820915]
[1749371848492,0.731,649.66,648.92,0.387]
[1749371851796,0.731,649.66,648.92,4.22555216]
[1749371852689,0.731,649.66,649.05,3.83855216]
[1749371853193,0.731,649.66,649.07,3.83855216]
[1749371855393,0.731,649.66,649.06,3.83855216]
[1749371855694,0.731,649.66,649.07,3.83855216]
[1749371857198,0.731,649.66,649.08,3.83855216]
[1749371858194,0.731,649.66,649.05,3.83855216]